Workbook

Sheet Part_materia_prima (hidden)
A1: TABLA VIGENTE PARA 2018 Y 2019
A2: Participación | C2: Rebaja en tarifa ICE específico
A3: DESDE | B3: HASTA | C3: %
A4: 0.05 | B4: 0.1 | C4: 0.05
A5: 0.1001 | B5: 0.2 | C5: 0.1
A6: 0.2001 | B6: 0.3 | C6: 0.2
A7: 0.3 | B7: 0.4 | C7: 0.3
A8: 0.4001 | B8: 0.5 | C8: 0.4
A9: 0.5001 | B9: 1 | C9: 0.5
A10: CALCULO DE LA PARTICIPACIÓN Y REBAJA EN LA TARIFA ESPECÍFICA A PARTIR DE ENERO 2019
D12: JUSTIFICADO CON COMPROBANTES DE VENTA VÁLIDOS
A13: # | B13: AÑO | C13: MES | D13: AGUARDIENTE Y ALCOHOL SIN BENEFICIO | E13: ALCOHOL ARTESANAL/EPS | F13: AGUARDIENTE ARTESANAL/EPS | G13: TOTAL COMPRAS | H13: TOTAL COMPRAS ÚLTIMOS 6 MESES | I13: AGUARDIENTE Y ALCOHOL PRIMA PARA BENEFICIO | J13: TOTAL COMPRAS CON BENEFICIO | K13: PARTICIPACIÓN | L13: % REDUCCCIÓN EN TARIFA ESPECÍFICA
A14: 1 | B14: 2018 | C14: JULIO | G14: =SUM(D14:F14) -> 0 | I14: =SUM(E14:F14) -> 0
A15: 2 | B15: 2018 | C15: AGOSTO | G15: =SUM(D15:F15) -> 0 | I15: =SUM(E15:F15) -> 0
A16: 3 | B16: 2018 | C16: SEPTIEMBRE | G16: 0 | H16: =SUM(G14:G15) -> 0 | I16: 0 | J16: =SUM(I14:I15) -> 0 | K16: =+J16/H16 ->  | L16: =+IF(K16<5%,0%,IF(K16<=$B$4,5%,IF(K16<=$B$5,10%,IF(K16<=$B$6,20%,IF(K16<=$B$7,30%,IF(K16<=$B$8,40%,IF(K16<=$B$9,50%,"REVISAR"))))))) -> 
A17: 4 | B17: 2018 | C17: OCTUBRE | G17: 0 | H17: =SUM(G14:G16) -> 0 | I17: 0 | J17: =SUM(I14:I16) -> 0 | K17: =+J17/H17 ->  | L17: =+IF(K17<5%,0%,IF(K17<=$B$4,5%,IF(K17<=$B$5,10%,IF(K17<=$B$6,20%,IF(K17<=$B$7,30%,IF(K17<=$B$8,40%,IF(K17<=$B$9,50%,"REVISAR"))))))) -> 
A18: 5 | B18: 2018 | C18: NOVIEMBRE | G18: 0 | H18: =SUM(G14:G17) -> 0 | I18: 0 | J18: =SUM(I14:I17) -> 0 | K18: =+J18/H18 ->  | L18: =+IF(K18<5%,0%,IF(K18<=$B$4,5%,IF(K18<=$B$5,10%,IF(K18<=$B$6,20%,IF(K18<=$B$7,30%,IF(K18<=$B$8,40%,IF(K18<=$B$9,50%,"REVISAR"))))))) -> 
A19: 6 | B19: 2018 | C19: DICIEMBRE | G19: 0 | H19: =SUM(G14:G18) -> 0 | I19: 0 | J19: =SUM(I14:I18) -> 0 | K19: =+J19/H19 ->  | L19: =+IF(K19<5%,0%,IF(K19<=$B$4,5%,IF(K19<=$B$5,10%,IF(K19<=$B$6,20%,IF(K19<=$B$7,30%,IF(K19<=$B$8,40%,IF(K19<=$B$9,50%,"REVISAR"))))))) -> 
A20: 7 | B20: 2019 | C20: ENERO | G20: =SUM(D20:F20) -> 0 | H20: =SUM(G14:G19) -> 0 | I20: =SUM(E20:F20) -> 0 | J20: =SUM(I14:I19) -> 0 | K20: =+J20/H20 ->  | L20: =+IF(K20<5%,0%,IF(K20<=$B$4,5%,IF(K20<=$B$5,10%,IF(K20<=$B$6,20%,IF(K20<=$B$7,30%,IF(K20<=$B$8,40%,IF(K20<=$B$9,50%,"REVISAR"))))))) -> 
A21: 8 | B21: 2019 | C21: FEBRERO | G21: 0 | H21: =SUM(G15:G20) -> 0 | I21: 0 | J21: =SUM(I15:I20) -> 0 | K21: =+J21/H21 ->  | L21: =+IF(K21<5%,0%,IF(K21<=$B$4,5%,IF(K21<=$B$5,10%,IF(K21<=$B$6,20%,IF(K21<=$B$7,30%,IF(K21<=$B$8,40%,IF(K21<=$B$9,50%,"REVISAR"))))))) -> 
A22: 9 | B22: 2019 | C22: MARZO | G22: 0 | H22: =SUM(G16:G21) -> 0 | I22: 0 | J22: =SUM(I16:I21) -> 0
A23: 10 | B23: 2019 | C23: ABRIL | G23: 0 | H23: =SUM(G17:G22) -> 0 | I23: 0 | J23: =SUM(I17:I22) -> 0
A24: 11 | B24: 2019 | C24: MAYO | G24: 0 | H24: =SUM(G18:G23) -> 0 | I24: 0 | J24: 0
A25: 12 | B25: 2019 | C25: JUNIO | G25: 0 | H25: =SUM(G19:G24) -> 0 | I25: 0 | J25: 0
A26: 13 | B26: 2019 | C26: JULIO | G26: 0 | H26: 0 | I26: 0 | J26: 0
A27: 14 | B27: 2019 | C27: AGOSTO | G27: 0 | H27: 0 | I27: 0 | J27: 0
A28: 15 | B28: 2019 | C28: SEPTIEMBRE | G28: 0 | H28: 0 | I28: 0 | J28: 0
A29: 16 | B29: 2019 | C29: OCTUBRE | G29: 0 | H29: 0 | I29: 0 | J29: 0
A30: 17 | B30: 2019 | C30: NOVIEMBRE | G30: 0 | H30: 0 | I30: 0 | J30: 0
A31: 18 | B31: 2019 | C31: DICIEMBRE | G31: 0 | H31: 0 | I31: 0 | J31: 0
A34: ESCOJA MES: | C34: FEBRERO | F34: =+IF(L13=0%,"NO TIENE REBAJA EN ICE ESPECÍFICO","LA REDUCCIÓN EN LA TARIFA ESPECÍFICA ES DE:") -> LA REDUCCIÓN EN LA TARIFA ESPECÍFICA ES DE: | K34: =+IF(C34="ENERO",L20,IF(C34="FEBRERO",L21,IF(C34="MARZO",L22,IF(C34="ABRIL",L23,IF(C34="MAYO",L24,IF(C34="JUNIO",L25,IF(C34="JULIO",L26,IF(C34="AGOSTO",L27,IF(C34="SEPTIEMBRE",L28,IF(C34="OCTUBRE",L29,IF(C34="NOVIEMBRE",L30,IF(C34="DICIEMBRE",L31,"REVISAR")))))))))))) -> 
A37: Nota: El contribuyente deberá ingresar los datos en los campos resaltados en amarillo de acuerdo a su propia información.

Sheet Sin beneficios
A1: EJEMPLO CÁLCULO DE ICE BEBIDAS ALCOHÓLICAS/CERVEZA SIN BENEFICIOS | N1: SI | O1: 7.25
N2: NO | O2: 1.5
O3: 4.33
O4: =+O3*2 -> 8.66
A5: Tipo de Bebida alcohólica | B5: Grado alcohólico | C5: Capacidad en cc | D5: Precio de venta del fabricante (menos impuestos) / ex aduana | E5: Cantidad vendida (botellas) | F5: Base imponible ICE ADVALOREM*
A6: a | B6: b | C6: c | D6: d | E6: e | F6: f | P6: Bebida Alcohólica
A7: Bebida Alcohólica / Cerveza | B7: 4 | C7: 750 | D7: 4 | E7: 2 | F7: 4.33 | P7: Cerveza
A9: * Se considerará un valor de Base Imponible ADVALOREM de US $ 8,66 únicamente para: Las micro o pequeñas empresas u organizaciones de la economía popular y solidaria que sean productoras de bebidas alcohólicas Utilicen alcohol o aguardiente, provenientes de productos agropecuarios. Adquirido a artesanos, micro o pequeñas empresas u organizaciones de la economía popular y solidaria.
A11: CALCULO DEL ICE AD VALOREM
A12: Precio de venta del fabricante (menos impuestos) / ex aduana | B12: Verificar si supera los USD 4,33 u 8,66 por litro de bebida alcohólica: ajustar el precio a un litro | C12: Causa ICE advalorem | D12: Base imponible bruta por botella | E12: Base imponible neta bruta por botella | F12: Base imponible neta total | G12: ICE ADVALOREM TOTAL
A13: d | B13: g = d * 1000 / c | D13: o = f * h
A14: =+D7 -> 4 | B14: =+A14*1000/C7 -> 5.333333333 | C14: =IF(B14>F7,"SÍ","NO") -> SÍ | D14: =+A14-(F7*C7/1000) -> 0.7525 | E14: =+D14 -> 0.7525 | F14: =+E14*E7 -> 1.505 | G14: =+F14*75% -> 1.12875
A16: CÁLCULO ICE ESPECÍFICO
A17: Grado alcohólico / 100 | B17: Capacidad / 1000 | C17: Volumen bruto por botella | D17: Volumen neto por botella | E17: Volumen neto total | F17: Tarifa específica año 2020** | G17: ICE causado específico (casillero 319)
A18: g = b/100 | B18: h = c / 1000 | C18: i = g * h | D18: k | F18: l | G18: m = k*l
A19: =+B7/100 -> 0.04 | B19: =+C7/1000 -> 0.75 | C19: =A19*B19 -> 0.03 | D19: =+C19 -> 0.03 | E19: =+D19*E7 -> 0.06 | F19: =+O1 -> 7.25 | G19: =E19*F19 -> 0.435
A21: ** Tarifas específicas vigentes para el año 2020: Bebidas alcohólicas = US $ 7,25 Cerveza Artesanal = US $ 1,25
A23: ICE TOTAL SIN EXONERACIÓN NI REBAJA= | G23: =+G14+G19 -> 1.56375

Sheet Cálculo_con_beneficios
A1: EJEMPLO CÁLCULO DE ICE BEBIDAS ALCOHÓLICAS/CERVEZA CON EXONERACIÓN Y REBAJA | N1: SI | O1: 7.25
N2: NO | O2: 4.33
A3: Consideraciones importantes: Exoneración: - Aplica para bebidas alcohólicas y cervezas. - Aplica al ICE total (ICE específico e ICE ad valorem). - Máximo 50% en función de las compras de ingredientes nacionales. Rebaja: - Aplica para bebidas alcohólicas y cervezas. - Aplica para cervezas cuando se trate de nuevas marcas. - Aplica el 50% de rebaja para la tarifa específica del ICE. -Para ambos casos: - El análisis y cálculo se debe realizar por cada bebida alcohólica/cerveza. - La composicion de las bebidas alcohólicas/cerveza debe ser de al menos un 70% de ingredientes nacionales sin considerar el agua. - Los productos agropecuarios debe ser adquiridos a productores nacionales artesanos, microempresarios , empresas EPS. - El RUC debe contar con la actividad económica relacionada a producción, elaboración, etc., de bebidas alcohólicas/cerveza. - Debe tener las respectivas Notificaciones Sanitarias (Registros Sanitarios). - No haber tenido sanciones por incumplimiento en la colocación de CFS - Debe obtener los Componentes Físicos de Seguridad CFS (excepto para cerveza artesanal) - Debe llevar facturación electrónica. - Deben contar con un sistema de gestión de información para trazabilidad de ingredientes nacionales (a partir de septiembre 2021)
O4: =+O2*2 -> 8.66
A5: Tipo de Bebida alcohólica | B5: Grado alcohólico | C5: Capacidad en cc | D5: Precio de venta del fabricante (menos impuestos) / ex aduana | E5: Cantidad vendida (botellas) | F5: Base imponible ICE ADVALOREM*
A6: a | B6: b | C6: c | D6: d | E6: e | F6: f | N6: 0
A7: =+'Sin beneficios'!A7 -> Bebida Alcohólica / Cerveza | B7: 20 | C7: 750 | D7: 4 | E7: 1 | F7: 4.33 | N7: 0.05
N8: 0.1
A9: Escoger % de exoneración del ICE | B9: Rebaja ICE específico | N9: 0.15
N10: 0.2
A11: 0.15 | B11: SI | N11: 0.3
N12: 0.4
A13: * Se considerará un valor de Base Imponible ADVALOREM de US $ 8,66 únicamente para: Las micro o pequeñas empresas u organizaciones de la economía popular y solidaria que sean productoras de bebidas alcohólicas Utilicen alcohol o aguardiente, provenientes de productos agropecuarios. Adquirido a artesanos, micro o pequeñas empresas u organizaciones de la economía popular y solidaria. | N13: 0.5
A15: CALCULO DEL ICE AD VALOREM
A16: Precio de venta del fabricante (menos impuestos) / ex aduana | B16: Verificar si supera los USD 4,33 u 8,66 por litro de bebida alcohólica (a partir del 1 de enero de 2020) | C16: Causa ICE advalorem | D16: Base imponible bruta por botella | E16: Base imponible neta bruta por botella | F16: Base imponible neta total | G16: ICE ADVALOREM TOTAL
A17: d | B17: g = d * 1000 / c | D17: o = f * h
A18: =+D7 -> 4 | B18: =+A18*1000/C7 -> 5.333333333 | C18: =IF(B18>F7,"SÍ","NO") -> SÍ | D18: =+A18-(F7*C7/1000) -> 0.7525 | E18: =+D18 -> 0.7525 | F18: =+E18*E7 -> 0.7525 | G18: =+F18*75% -> 0.564375
A20: CÁLCULO ICE ESPECÍFICO
A21: Grado alcohólico / 100 | B21: Capacidad / 1000 | C21: Volumen bruto por botella | D21: Volumen neto por botella | E21: Volumen neto total | F21: Tarifa específica año 2020 | G21: ICE causado específico (casillero 319)
A22: g = b/100 | B22: h = c / 1000 | C22: i = g * h | D22: k | F22: l | G22: m = k*l
A23: =+B7/100 -> 0.2 | B23: =+C7/1000 -> 0.75 | C23: =A23*B23 -> 0.15 | D23: =+C23 -> 0.15 | E23: =+D23*E7 -> 0.15 | F23: =+O1 -> 7.25 | G23: =E23*F23 -> 1.0875
A25: ICE TOTAL SIN EXONERACIÓN NI REBAJA= | G25: =+G18+G23 -> 1.651875
C27: RESUMEN BENEFICIOS:
C28: EXONERACIÓN DEL ICE | E28: =+IF(A11>0,G25-(G25*A11),0) -> 1.40409375
C29: REBAJA | E29: =+IF(B11="SI",(E23*(F23-(F23*50%))),0) -> 0.54375
C30: TOTAL BENEFICIO | E30: =SUM(E28:E29) -> 1.94784375
C32: VALORES A PAGAR:
C33: ICE AD VALOREM | E33: =+G18-(G18*A11) -> 0.47971875
C34: ICE ESPECÍFICO | E34: =+G23-(G23*A11)-(E23*(F23-F23*50%)) -> 0.380625
C35: ICE A PAGAR | E35: =SUM(E33:E34) -> 0.86034375

Sheet Formulario ICE (hidden)
A1: FORMULARIO IMPUESTO A LOS CONSUMOS ESPECIALES
A3: IMPUESTO AD VALOREM | I3: . | K3: IMPUESTO ESPECÍFICO
A4: Base imponible bruta | G4: 303 | H4: =+'Sin beneficios'!#REF! ->  | I4: . | K4: Volumen bruto | Q4: 313 | R4: =+'Sin beneficios'!#REF! -> 
A5: Base imponible neta (base imponible bruta menos devoluciones) | G5: 304 | H5: =+'Sin beneficios'!#REF! ->  | I5: . | K5: Volumen neto (volumen bruto menos devoluciones) | Q5: 314 | R5: =+'Sin beneficios'!#REF! -> 
A6: Porcentaje tarifa ad valorem | G6: 305 | H6: 0.75 | I6: . | K6: Tarifa específica | Q6: 315 | R6: 7.25
A7: ICE causado ad valorem | G7: 309 | H7: =+H6*H5 ->  | I7: . | K7: ICE causado específico | Q7: 319 | R7: =+ROUND((R5*R6),2) -> 
A9: Volumen neto de vehículos eléctricos | G9: 307 | H9: 0 | I9: . | K9: Volumen neto aplica tarifa reducida | Q9: 316 | R9: =+'Sin beneficios'!#REF! -> 
A10: Descuento ICE causado ad valorem | G10: 310 | H10: 0 | I10: . | K10: Tarifa específica reducida | Q10: 317 | R10: =+'Sin beneficios'!#REF! -> 
A11: . | I11: . | K11: Rebaja por tarifa reducida | Q11: 318 | R11: =R9*(R6*Part_materia_prima!K34) -> 
A12: . | I12: . | K12: ICE causado específico con tarifa reducida | Q12: 320 | R12: =+'Sin beneficios'!#REF! -> 
A14: ICE CAUSADO
A15: ICE pagado al momento de la desaduanización | M15: . | Q15: 321
A16: TOTAL ICE CAUSADO | M16: 309 - 310 + 319 + 320 - 321 | Q16: 399 | R16: =+ROUND((H7+H10+R7+R12),2) -> 
A18: LIQUIDACIÓN DEL ICE EN EL MES
A19: Impuesto a liquidar el próximo mes (por ventas a crédito del período) | M19: . | Q19: 402
A20: Impuesto a liquidar del mes anterior | K20: (Trasládese el casillero 402 de la declaración del período anterior) | Q20: 403
A21: Total impuesto a liquidar en este mes | M21: 399 - 402 + 403 | Q21: 404
A23: (-) Saldo mes anterior por concepto de notas de crédito | K23: (Trasládese el casillero 498 de la declaración del período anterior) | Q23: 410
A24: (-) Notas de crédito del periodo | M24: . | Q24: 411
A25: Saldo para el próximo mes por concepto de notas de crédito | M25: . | Q25: 498
A26: TOTAL ICE A PAGAR | M26: 404 - 410 - 411 | Q26: 499
